fUSD/lending_fUSD_20250610
["ID","MTS","AMOUNT","RATE_DAILY","PERIOD"]
[365205104,1749532955545,152.0,0.00016828,12]
[365205105,1749532955859,152.0,0.00016677,11]
[365205106,1749532956217,152.0,0.00016527,10]
[365205107,1749532956528,152.0,0.00016377,9]
[365205108,1749532956840,152.0,0.00016227,8]
[365205109,1749532957381,152.0,0.00016077,7]
[365205110,1749532957511,152.0,0.00015927,6]
[365205111,1749532957820,152.0,0.00015777,5]
[365205112,1749532958655,152.0,0.00015627,4]
[365205113,1749532958987,152.0,0.00015476,3]
[365205114,1749532977231,167.69,0.00015789,2]
[365205115,1749533002333,150.0,0.00015789,7]
[365205116,1749533115254,-284.0,0.00016005,2]
[365205119,1749533126135,-200.0,0.00016005,2]
[365205121,1749533128298,-175.21,0.00016005,2]
[365205122,1749533129950,-277.13221236,0.00016005,2]
[365205123,1749533134033,-241.23923776,0.00016005,2]
[365205125,1749533136173,-258.76076224,0.00016005,2]
[365205127,1749533137752,-46.32259364,0.00016005,2]
[365205144,1749533202456,329.58,0.00015744,2]
[365205151,1749533220062,500.0,0.00014964,2]
[365205156,1749533234761,1135.94932647,0.00024,120]
[365205164,1749533262220,6767.07,0.0001573,2]
[365205167,1749533271468,4300.146761,0.00013,2]
[365205171,1749533293130,277.0,0.00015127,2]
[365205172,1749533293401,277.0,0.0001558,2]
[365205174,1749533295528,500.0,0.00014964,2]
[365205175,1749533295626,1000.0,0.000135,2]
[365205176,1749533295791,298.77167069,0.000125,2]
[365205178,1749533299644,178.12780132,0.00014964,2]
[365205181,1749533311529,217.68611021,0.0001,2]
[365205183,1749533314844,2659.13245081,0.0001,2]
[365205185,1749533321133,348.46543093,0.00010136,2]
[365205196,1749533345325,883.42961412,0.00023233,120]
[365205201,1749533362677,906.07,0.00014057,2]
[365205205,1749533377332,193.19985582,0.00015392,2]
[365205218,1749533395870,661.95,0.00015663,2]
[365205241,1749533432311,-277.0,0.00016033,3]
[365205242,1749533432322,-250.0,0.0001606,2]
[365205243,1749533432336,-333.88244143,0.00016136,2]
[365205249,1749533432532,-1943.41755857,0.00016136,2]
[365205250,1749533432543,-1200.0,0.00016298,2]
[365205251,1749533432553,-300.0,0.00016299,2]
[365205252,1749533432562,-300.0,0.00016299,2]
[365205253,1749533432572,-300.0,0.00016299,2]
[365205254,1749533432585,-300.0,0.00016299,2]
[365205255,1749533432595,-4912.77900813,0.000163,2]
[365205755,1749533437988,-5017.4092496,0.000163,2]
[365205757,1749533437998,-906.07,0.00016321,2]
[365205759,1749533438007,-150.0,0.00016322,2]
[365205761,1749533438017,-355.21012813,0.0001633,2]
[365205766,1749533438057,-2747.0772304,0.0001633,2]
[365205768,1749533438068,-280.407,0.0001633,2]
[365205785,1749533438213,-435.68045185,0.0001633,2]
[365205787,1749533438224,-429.50653043,0.0001633,2]
[365205789,1749533438236,-434.93413279,0.0001633,2]
[365205938,1749533440576,-9933.96114477,0.0001633,2]
[365205940,1749533440587,-561.78453823,0.00016337,2]
[365205942,1749533440597,-561.78453823,0.00016338,2]
[365205945,1749533440607,-200.0,0.0001634,2]
[365205946,1749533440616,-184.33,0.00016348,2]
[365205948,1749533440626,-250.0,0.00016405,2]
[365205951,1749533440635,-6364.88140044,0.00016436,2]
[365205952,1749533440645,-231.71482059,0.00016437,2]
[365205954,1749533440655,-184.79326835,0.00016437,2]
[365205956,1749533440664,-550.0,0.00016437,2]
[365205958,1749533440674,-455.94374161,0.00016437,2]
[365205960,1749533440683,-500.0,0.00016437,2]
[365205962,1749533440693,-500.0,0.00016437,2]
[365205964,1749533440703,-192.13420466,0.00016437,2]
[365205966,1749533440712,-274.445893,0.00016438,2]
[365205968,1749533440721,-230.138801,0.00016438,2]
[365205970,1749533440731,-490.0,0.00016438,2]
[365205972,1749533440740,-470.0,0.00016438,2]
[365205974,1749533440750,-513.45300837,0.00016438,2]
[365205976,1749533440759,-490.0,0.00016438,2]
[365205978,1749533440769,-490.0,0.00016438,2]
[365205980,1749533440778,-274.22,0.00016438,2]
[365205982,1749533440787,-490.0,0.00016438,2]
[365205984,1749533440797,-207.56,0.00016438,2]
[365205986,1749533440806,-490.0,0.00016438,2]
[365205988,1749533440815,-490.0,0.00016438,2]
[365205990,1749533440824,-480.0,0.00016438,2]
[365205992,1749533440834,-490.0,0.00016438,2]
[365205993,1749533440843,-480.0,0.00016438,2]
[365205995,1749533440853,-490.0,0.00016438,2]
[365205997,1749533440862,-480.0,0.00016438,2]
[365205999,1749533440872,-480.0,0.00016438,2]
[365206001,1749533440881,-510.21,0.00016438,2]
[365206003,1749533440891,-506.89,0.00016438,2]
[365206005,1749533440900,-579.43,0.00016438,2]
[365206007,1749533440909,-490.0,0.00016438,2]
[365206009,1749533440918,-490.0,0.00016438,2]
[365206011,1749533440927,-490.0,0.00016438,2]
[365206013,1749533440936,-490.0,0.00016438,2]
[365206015,1749533440945,-490.0,0.00016438,2]
[365206017,1749533440954,-490.0,0.00016438,2]
[365206019,1749533440964,-490.0,0.00016438,2]
[365206021,1749533440974,-203.51,0.00016438,2]
[365206023,1749533440983,-490.0,0.00016438,2]
[365206025,1749533440992,-189.71472202,0.00016438,2]
[365206027,1749533441002,-490.0,0.00016438,2]
[365206029,1749533441011,-490.0,0.00016438,2]
[365206031,1749533441020,-490.0,0.00016438,2]
[365206033,1749533441030,-556.72772323,0.00016438,2]
[365206035,1749533441039,-490.0,0.00016438,2]
[365206037,1749533441048,-490.0,0.00016438,2]
[365206039,1749533441057,-490.0,0.00016438,2]
[365206041,1749533441067,-490.0,0.00016438,2]
[365206043,1749533441076,-490.0,0.00016438,2]
[365206045,1749533441086,-490.0,0.00016438,2]
[365206046,1749533441096,-490.0,0.00016438,2]
[365206048,1749533441105,-490.0,0.00016438,2]
[365206050,1749533441115,-490.0,0.00016438,2]
[365206052,1749533441124,-628.27,0.00016438,2]
[365206054,1749533441134,-490.0,0.00016438,2]
[365206056,1749533441143,-490.0,0.00016438,2]
[365206059,1749533441162,-490.0,0.00016438,2]
[365206061,1749533441173,-490.0,0.00016438,2]
[365206063,1749533441183,-490.0,0.00016438,2]
[365206065,1749533441192,-490.0,0.00016438,2]
[365206067,1749533441202,-490.0,0.00016438,2]
[365206069,1749533441212,-368.48,0.00016438,2]
[365206071,1749533441222,-490.0,0.00016438,2]
[365206073,1749533441231,-490.0,0.00016438,2]
[365206075,1749533441241,-490.0,0.00016438,2]
[365206077,1749533441252,-490.0,0.00016438,2]
[365206079,1749533441262,-1245.46,0.00016438,2]
[365206081,1749533441272,-490.0,0.00016438,2]
[365206083,1749533441281,-490.0,0.00016438,2]
[365206085,1749533441291,-336.77,0.00016438,2]
[365206087,1749533441301,-490.0,0.00016438,2]
[365206089,1749533441310,-554.6,0.00016438,2]
[365206091,1749533441319,-194.91,0.00016438,2]
[365206093,1749533441330,-490.0,0.00016438,2]
[365206095,1749533441339,-490.0,0.00016438,2]
[365206097,1749533441349,-490.0,0.00016438,2]
[365206099,1749533441359,-490.0,0.00016438,2]
[365206101,1749533441369,-490.0,0.00016438,2]
[365206103,1749533441378,-490.0,0.00016438,2]
[365206105,1749533441388,-490.0,0.00016438,2]
[365206107,1749533441398,-490.0,0.00016438,2]
[365206109,1749533441408,-517.65,0.00016438,2]
[365206111,1749533441417,-490.0,0.00016438,2]
[365206113,1749533441427,-490.0,0.00016438,2]
[365206115,1749533441437,-490.0,0.00016438,2]
[365206117,1749533441446,-480.0,0.00016438,2]
[365206119,1749533441456,-490.0,0.00016438,2]
[365206121,1749533441465,-420.87,0.00016438,2]
[365206123,1749533441475,-513.24,0.00016438,2]
[365206125,1749533441484,-490.0,0.00016438,2]
[365206127,1749533441493,-508.44,0.00016438,2]
[365206129,1749533441503,-665.21,0.00016438,2]
[365206131,1749533441512,-490.0,0.00016438,2]
[365206133,1749533441522,-490.0,0.00016438,2]
[365206135,1749533441532,-951.5,0.00016438,2]
[365206137,1749533441542,-490.0,0.00016438,2]
[365206139,1749533441552,-490.0,0.00016438,2]
[365206141,1749533441562,-490.0,0.00016438,2]
[365206143,1749533441571,-490.0,0.00016438,2]
[365206145,1749533441580,-371.37082587,0.00016438,2]
[365206147,1749533441590,-490.0,0.00016438,2]
[365206148,1749533441599,-490.0,0.00016438,2]
[365206150,1749533441608,-490.0,0.00016438,2]
[365206152,1749533441618,-490.0,0.00016438,2]
[365206154,1749533441628,-569.87,0.00016438,2]
[365206156,1749533441638,-369.9,0.00016438,2]
[365206159,1749533441648,-490.0,0.00016438,2]
[365206160,1749533441658,-490.0,0.00016438,2]
[365206162,1749533441668,-569.95487799,0.00016438,2]
[365206165,1749533441678,-490.0,0.00016438,2]
[365206167,1749533441688,-311.27,0.00016438,2]
[365206168,1749533441697,-490.0,0.00016438,2]
[365206171,1749533441707,-490.0,0.00016438,2]
[365206173,1749533441716,-480.0,0.00016438,2]
[365206175,1749533441726,-490.0,0.00016438,2]
[365206177,1749533441736,-490.0,0.00016438,2]
[365206179,1749533441745,-490.0,0.00016438,2]
[365206181,1749533441755,-667.57,0.00016438,2]
[365206183,1749533441765,-490.0,0.00016438,2]
[365206185,1749533441774,-490.0,0.00016438,2]
[365206187,1749533441784,-247.91721308,0.00016438,2]
[365206188,1749533441794,-543.67,0.00016438,2]
[365206191,1749533441803,-490.0,0.00016438,2]
[365206192,1749533441813,-490.0,0.00016438,2]
[365206194,1749533441822,-490.0,0.00016438,2]
[365206196,1749533441831,-903.5,0.00016438,2]
[365206198,1749533441840,-490.0,0.00016438,2]
[365206200,1749533441849,-490.0,0.00016438,2]
[365206202,1749533441858,-529.77,0.00016438,2]
[365206204,1749533441867,-490.0,0.00016438,2]
[365206206,1749533441876,-490.0,0.00016438,2]
[365206208,1749533441885,-480.0,0.00016438,2]
[365206210,1749533441895,-490.0,0.00016438,2]
[365206212,1749533441904,-490.0,0.00016438,2]
[365206214,1749533441913,-490.0,0.00016438,2]
[365206215,1749533441922,-461.56625845,0.00016438,2]
[365206216,1749533441930,-480.0,0.00016438,2]
[365206217,1749533441939,-490.0,0.00016438,2]
[365206218,1749533441948,-2029.12,0.00016438,2]
[365206219,1749533441957,-618.34748053,0.00016438,2]
[365206220,1749533441966,-490.0,0.00016438,2]
[365206221,1749533441975,-559.61,0.00016438,2]
[365206222,1749533441985,-637.05,0.00016438,2]
[365206223,1749533441994,-490.0,0.00016438,2]
[365206224,1749533442004,-490.0,0.00016438,2]
[365206225,1749533442013,-498.06,0.00016438,2]
[365206226,1749533442023,-150.87,0.00016438,2]
[365206227,1749533442032,-523.25,0.00016438,2]
[365206228,1749533442041,-490.0,0.00016438,2]
[365206229,1749533442051,-490.0,0.00016438,2]
[365206230,1749533442061,-490.0,0.00016438,2]
[365206231,1749533442071,-490.0,0.00016438,2]
[365206232,1749533442081,-490.0,0.00016438,2]
[365206233,1749533442091,-480.0,0.00016438,2]
[365206234,1749533442101,-490.0,0.00016438,2]
[365206235,1749533442111,-480.0,0.00016438,2]
[365206236,1749533442120,-475.11,0.00016438,2]
[365206237,1749533442129,-480.0,0.00016438,2]
[365206238,1749533442138,-601.59,0.00016438,2]
[365206239,1749533442147,-490.0,0.00016438,2]
[365206240,1749533442157,-490.0,0.00016438,2]
[365206241,1749533442165,-794.18,0.00016438,2]
[365206242,1749533442173,-490.0,0.00016438,2]
[365206243,1749533442182,-574.39055951,0.00016438,2]
[365206244,1749533442191,-490.0,0.00016438,2]
[365206245,1749533442200,-490.0,0.00016438,2]
[365206246,1749533442210,-490.0,0.00016438,2]
[365206247,1749533442219,-490.0,0.00016438,2]
[365206248,1749533442228,-480.0,0.00016438,2]
[365206249,1749533442238,-490.0,0.00016438,2]
[365206250,1749533442249,-506.01,0.00016438,2]
[365206251,1749533442263,-490.0,0.00016438,2]
[365206252,1749533442273,-490.0,0.00016438,2]
[365206253,1749533442283,-277.0,0.00016486,3]
[365206254,1749533442292,-151.0,0.00016519,2]
[365206255,1749533442302,-207.4,0.00016519,2]
[365206256,1749533442312,-548.47,0.00016602,2]
[365206257,1749533442322,-490.0,0.00016602,2]
[365206258,1749533442333,-205.23,0.00016602,2]
[365206259,1749533442344,-490.0,0.00016602,2]
[365206260,1749533442354,-490.0,0.00016602,2]
[365206261,1749533442365,-448.76,0.00016602,2]
[365206262,1749533442374,-490.0,0.00016602,2]
[365206263,1749533442384,-413.05967186,0.00016602,2]
[365206264,1749533442393,-490.0,0.00016602,2]
[365206265,1749533442402,-490.0,0.00016602,2]
[365206266,1749533442411,-480.0,0.00016602,2]
[365206267,1749533442422,-490.0,0.00016602,2]
[365206268,1749533442431,-490.0,0.00016602,2]
[365206269,1749533442440,-490.0,0.00016602,2]
[365206270,1749533442449,-356.36,0.00016602,2]
[365206271,1749533442459,-490.0,0.00016602,2]
[365206272,1749533442468,-490.0,0.00016602,2]
[365206273,1749533442477,-1245.46,0.00016602,2]
[365206274,1749533442486,-490.0,0.00016602,2]
[365206275,1749533442495,-554.6,0.00016602,2]
[365206276,1749533442504,-490.0,0.00016602,2]
[365206277,1749533442513,-517.65,0.00016602,2]
[365206278,1749533442523,-490.0,0.00016602,2]
[365206279,1749533442532,-665.21,0.00016602,2]
[365206280,1749533442542,-951.5,0.00016602,2]
[365206281,1749533442550,-256.82,0.00016602,2]
[365206282,1749533442560,-490.0,0.00016602,2]
[365206283,1749533442569,-490.0,0.00016602,2]
[365206284,1749533442578,-490.0,0.00016602,2]
[365206285,1749533442587,-490.0,0.00016602,2]
[365206286,1749533442597,-490.0,0.00016602,2]
[365206287,1749533442608,-490.0,0.00016602,2]
[365206288,1749533442618,-667.57,0.00016602,2]
[365206289,1749533442627,-490.0,0.00016602,2]
[365206290,1749533442637,-543.67,0.00016602,2]
[365206291,1749533442646,-903.5,0.00016602,2]
[365206292,1749533442655,-490.0,0.00016602,2]
[365206293,1749533442665,-529.77,0.00016602,2]
[365206294,1749533442675,-365.44201751,0.00016602,2]
[365206295,1749533442685,-480.0,0.00016602,2]
[365206296,1749533442695,-490.0,0.00016602,2]
[365206297,1749533442704,-490.0,0.00016602,2]
[365206298,1749533442715,-490.0,0.00016602,2]
[365206299,1749533442725,-490.0,0.00016602,2]
[365206300,1749533442735,-2029.12,0.00016602,2]
[365206301,1749533442744,-559.61,0.00016602,2]
[365206302,1749533442754,-637.05,0.00016602,2]
[365206304,1749533442764,-490.0,0.00016602,2]
[365206306,1749533442775,-498.06,0.00016602,2]
[365206307,1749533442785,-490.0,0.00016602,2]
[365206308,1749533442794,-480.0,0.00016602,2]
[365206309,1749533442804,-490.0,0.00016602,2]
[365206310,1749533442814,-490.0,0.00016602,2]
[365206311,1749533442824,-601.59,0.00016602,2]
[365206312,1749533442834,-794.18,0.00016602,2]
[365206313,1749533442844,-559.06,0.00016602,2]
[365206314,1749533442854,-490.0,0.00016602,2]
[365206315,1749533442864,-490.0,0.00016602,2]
[365206316,1749533442878,-490.0,0.00016602,2]
[365206317,1749533442888,-506.01,0.00016602,2]
[365206318,1749533442898,-892.75,0.00016668,2]
[365206319,1749533442908,-1000.0,0.00016763,2]
[365206320,1749533442918,-490.0,0.00016767,2]
[365206321,1749533442928,-490.0,0.00016767,2]
[365206323,1749533442937,-490.0,0.00016767,2]
[365206325,1749533442946,-559.21522852,0.00016767,2]
[365206327,1749533442955,-490.0,0.00016767,2]
[365206328,1749533442965,-490.0,0.00016767,2]
[365206329,1749533442975,-490.0,0.00016767,2]
[365206330,1749533442984,-490.0,0.00016767,2]
[365206331,1749533442994,-490.0,0.00016767,2]
[365206332,1749533443002,-287.03097971,0.00016767,2]
[365206333,1749533443012,-1245.46,0.00016767,2]
[365206334,1749533443021,-490.0,0.00016767,2]
[365206335,1749533443030,-554.6,0.00016767,2]
[365206336,1749533443039,-490.0,0.00016767,2]
[365206337,1749533443050,-517.65,0.00016767,2]
[365206338,1749533443060,-490.0,0.00016767,2]
[365206339,1749533443071,-665.21,0.00016767,2]
[365206340,1749533443081,-951.5,0.00016767,2]
[365206341,1749533443092,-345.97841161,0.00016767,2]
[365206342,1749533443102,-490.0,0.00016767,2]
[365206343,1749533443112,-490.0,0.00016767,2]
[365206344,1749533443121,-490.0,0.00016767,2]
[365206345,1749533443131,-490.0,0.00016767,2]
[365206346,1749533443142,-490.0,0.00016767,2]
[365206347,1749533443153,-667.57,0.00016767,2]
[365206348,1749533443163,-490.0,0.00016767,2]
[365206349,1749533443172,-543.67,0.00016767,2]
[365206350,1749533443182,-903.5,0.00016767,2]
[365206351,1749533443192,-490.0,0.00016767,2]
[365206352,1749533443201,-529.77,0.00016767,2]
[365206353,1749533443211,-490.0,0.00016767,2]
[365206354,1749533443220,-490.0,0.00016767,2]
[365206355,1749533443230,-490.0,0.00016767,2]
[365206356,1749533443240,-490.0,0.00016767,2]
[365206357,1749533443251,-2029.12,0.00016767,2]
[365206358,1749533443262,-559.61,0.00016767,2]
[365206359,1749533443273,-637.05,0.00016767,2]
[365206360,1749533443282,-490.0,0.00016767,2]
[365206361,1749533443292,-498.06,0.00016767,2]
[365206362,1749533443302,-490.0,0.00016767,2]
[365206363,1749533443312,-490.0,0.00016767,2]
[365206364,1749533443322,-490.0,0.00016767,2]
[365206365,1749533443333,-601.59,0.00016767,2]
[365206366,1749533443343,-794.18,0.00016767,2]
[365206367,1749533443352,-490.0,0.00016767,2]
[365206368,1749533443362,-490.0,0.00016767,2]
[365206369,1749533443372,-506.01,0.00016767,2]
[365206370,1749533443382,-5000.0,0.00016789,2]
[365206371,1749533443391,-341.0,0.00016814,2]
[365206372,1749533443401,-170.66,0.00016814,2]
[365206373,1749533443411,-326.5,0.00016814,2]
[365206374,1749533443421,-163.25,0.00016814,2]
[365206375,1749533443431,-170.69,0.00016814,2]
[365206376,1749533443441,-170.66,0.00016814,2]
[365206377,1749533443452,-833.29909032,0.00016839,2]
[365206378,1749533443462,-1130.31495017,0.00016908,2]
[365206379,1749533443471,-187.44487856,0.0001693,2]
[365206380,1749533443481,-169.76976407,0.0001693,2]
[365206381,1749533443490,-490.0,0.00016931,2]
[365206382,1749533443499,-490.0,0.00016931,2]
[365206383,1749533443509,-490.0,0.00016931,2]
[365206384,1749533443518,-490.0,0.00016931,2]
[365206385,1749533443527,-490.0,0.00016931,2]
[365206388,1749533443737,-490.0,0.00016931,2]
[365206389,1749533443747,-490.0,0.00016931,2]
[365206390,1749533443756,-490.0,0.00016931,2]
[365206391,1749533443766,-1245.46,0.00016931,2]
[365206392,1749533443774,-490.0,0.00016931,2]
[365206393,1749533443782,-554.6,0.00016931,2]
[365206394,1749533443790,-490.0,0.00016931,2]
[365206395,1749533443799,-517.65,0.00016931,2]
[365206396,1749533443808,-490.0,0.00016931,2]
[365206397,1749533443817,-665.21,0.00016931,2]
[365206398,1749533443826,-951.5,0.00016931,2]
[365206399,1749533443836,-490.0,0.00016931,2]
[365206400,1749533443846,-420.46990151,0.00016931,2]
[365206401,1749533443855,-490.0,0.00016931,2]
[365206402,1749533443864,-490.0,0.00016931,2]
[365206403,1749533443875,-490.0,0.00016931,2]
[365206404,1749533443884,-667.57,0.00016931,2]
[365206405,1749533443894,-490.0,0.00016931,2]
[365206406,1749533443903,-543.67,0.00016931,2]
[365206407,1749533443913,-903.5,0.00016931,2]
[365206408,1749533443923,-490.0,0.00016931,2]
[365206409,1749533443932,-529.77,0.00016931,2]
[365206410,1749533443942,-202.65343168,0.00016931,2]
[365206411,1749533443952,-490.0,0.00016931,2]
[365206412,1749533443962,-490.0,0.00016931,2]
[365206413,1749533443971,-490.0,0.00016931,2]
[365206414,1749533443982,-2029.12,0.00016931,2]
[365206415,1749533443992,-559.61,0.00016931,2]
[365206416,1749533444001,-637.05,0.00016931,2]
[365206417,1749533444011,-490.0,0.00016931,2]
[365206418,1749533444021,-498.06,0.00016931,2]
[365206419,1749533444032,-490.0,0.00016931,2]
[365206420,1749533444044,-490.0,0.00016931,2]
[365206421,1749533444055,-490.0,0.00016931,2]
[365206422,1749533444064,-601.59,0.00016931,2]
[365206423,1749533444074,-794.18,0.00016931,2]
[365206424,1749533444084,-490.0,0.00016931,2]
[365206425,1749533444093,-490.0,0.00016931,2]
[365206426,1749533444103,-506.01,0.00016931,2]
[365206427,1749533444112,-277.0,0.0001694,4]
[365206428,1749533444122,-490.0,0.00017095,2]
[365206429,1749533444131,-490.0,0.00017095,2]
[365206430,1749533444140,-490.0,0.00017095,2]
[365206431,1749533444149,-490.0,0.00017095,2]
[365206432,1749533444159,-490.0,0.00017095,2]
[365206433,1749533444168,-490.0,0.00017095,2]
[365206434,1749533444178,-504.55697642,0.00017095,2]
[365206435,1749533444186,-490.0,0.00017095,2]
[365206436,1749533444195,-1245.46,0.00017095,2]
[365206437,1749533444205,-490.0,0.00017095,2]
[365206438,1749533444213,-554.6,0.00017095,2]
[365206439,1749533444222,-490.0,0.00017095,2]
[365206440,1749533444232,-517.65,0.00017095,2]
[365206441,1749533444241,-490.0,0.00017095,2]
[365206442,1749533444252,-665.21,0.00017095,2]
[365206443,1749533444263,-951.5,0.00017095,2]
[365206444,1749533444272,-490.0,0.00017095,2]
[365206445,1749533444282,-490.0,0.00017095,2]
[365206446,1749533444291,-490.0,0.00017095,2]
[365206447,1749533444303,-490.0,0.00017095,2]
[365206448,1749533444312,-667.57,0.00017095,2]
[365206449,1749533444322,-490.0,0.00017095,2]
[365206450,1749533444332,-543.67,0.00017095,2]
[365206451,1749533444342,-903.5,0.00017095,2]
[365206452,1749533444352,-490.0,0.00017095,2]
[365206453,1749533444361,-529.77,0.00017095,2]
[365206454,1749533444371,-490.0,0.00017095,2]
[365206455,1749533444380,-490.0,0.00017095,2]
[365206456,1749533444390,-490.0,0.00017095,2]
[365206457,1749533444401,-2029.12,0.00017095,2]
[365206458,1749533444411,-559.61,0.00017095,2]
[365206459,1749533444421,-637.05,0.00017095,2]
[365206460,1749533444431,-490.0,0.00017095,2]
[365206461,1749533444440,-498.06,0.00017095,2]
[365206462,1749533444450,-490.0,0.00017095,2]
[365206463,1749533444459,-490.0,0.00017095,2]
[365206464,1749533444469,-427.19941607,0.00017095,2]
[365206465,1749533444479,-601.59,0.00017095,2]
[365206466,1749533444489,-794.18,0.00017095,2]
[365206467,1749533444499,-490.0,0.00017095,2]
[365206468,1749533444509,-490.0,0.00017095,2]
[365206469,1749533444519,-506.01,0.00017095,2]
[365206470,1749533444528,-806.5,0.00017123,2]
[365206471,1749533444538,-500.0,0.00017123,2]
[365206472,1749533444548,-152.0,0.00017128,14]
[365206473,1749533444558,-1049.33604292,0.00017135,2]
[365206474,1749533444568,-1278.52358198,0.00017201,2]
[365206475,1749533444577,-374.55,0.00017218,2]
[365206476,1749533444588,-802.0,0.00017228,2]
[365206477,1749533444598,-637.0,0.00017228,2]
[365206478,1749533444608,-558.0,0.00017228,2]
[365206479,1749533444617,-927.0,0.00017228,2]
[365206480,1749533444626,-590.0,0.00017228,2]
[365206481,1749533444636,-2001.0,0.00017228,2]
[365206482,1749533444645,-1275.0,0.00017228,2]
[365206483,1749533444655,-1256.0,0.00017228,2]
[365206484,1749533444664,-1159.0,0.00017228,2]
[365206485,1749533444673,-7064.0,0.00017228,2]
[365206486,1749533444683,-945.0,0.00017228,2]
[365206487,1749533444692,-155.0,0.00017228,2]
[365206488,1749533444701,-4085.0,0.00017228,2]
[365206489,1749533444711,-500.0,0.00017259,2]
[365206490,1749533444720,-500.0,0.00017259,2]
[365206491,1749533444729,-490.0,0.0001726,2]
[365206492,1749533444738,-490.0,0.0001726,2]
[365206493,1749533444747,-490.0,0.0001726,2]
[365206494,1749533444756,-490.0,0.0001726,2]
[365206495,1749533444766,-490.0,0.0001726,2]
[365206496,1749533444776,-490.0,0.0001726,2]
[365206497,1749533444788,-1245.46,0.0001726,2]
[365206498,1749533444796,-490.0,0.0001726,2]
[365206499,1749533444805,-554.6,0.0001726,2]
[365206500,1749533444815,-490.0,0.0001726,2]
[365206501,1749533444824,-517.65,0.0001726,2]
[365206502,1749533444833,-490.0,0.0001726,2]
[365206503,1749533444843,-665.21,0.0001726,2]
[365206504,1749533444852,-951.5,0.0001726,2]
[365206505,1749533444861,-490.0,0.0001726,2]
[365206506,1749533444870,-490.0,0.0001726,2]
[365206507,1749533444883,-490.0,0.0001726,2]
[365206508,1749533444892,-667.57,0.0001726,2]
[365206509,1749533444901,-490.0,0.0001726,2]
[365206510,1749533444911,-543.67,0.0001726,2]
[365206511,1749533444920,-903.5,0.0001726,2]
[365206512,1749533444929,-490.0,0.0001726,2]
[365206513,1749533444939,-529.77,0.0001726,2]
[365206514,1749533444948,-490.0,0.0001726,2]
[365206515,1749533444958,-490.0,0.0001726,2]
[365206516,1749533444967,-490.0,0.0001726,2]
[365206517,1749533444976,-2029.12,0.0001726,2]
[365206518,1749533444986,-559.61,0.0001726,2]
[365206519,1749533444995,-637.05,0.0001726,2]
[365206520,1749533445004,-490.0,0.0001726,2]
[365206521,1749533445013,-498.06,0.0001726,2]
[365206522,1749533445023,-490.0,0.0001726,2]
[365206523,1749533445032,-490.0,0.0001726,2]
[365206524,1749533445041,-601.59,0.0001726,2]
[365206525,1749533445051,-794.18,0.0001726,2]